bitfinex-derivatives/quotes_ETHF0:USTF0_20250130
["timestamp","ask_amount","ask_price","bid_price","bid_amount"]
[1738262649802,0.61062,3275.3,3275.2,0.61059]
[1738262650315,0.61061,3275.2,3275.1,1.10982]
[1738262651699,0.61061,3275.2,3275.1,0.4992]
[1738262652200,0.61061,3275.2,3275.1,1.10983]
[1738262654397,0.61061,3275.2,3275.1,0.4992]
[1738262654599,4.2426,3275.6,3274.8,3.21237882]
[1738262654907,4.2426,3275.6,3273.4,2.60760041]
[1738262654908,0.61074,3274.5,3274.4,3.81856]
[1738262655100,0.61074,3274.5,3274.4,6.42616041]
[1738262656204,0.61074,3274.5,3274.4,5.81540041]
[1738262656408,0.61074,3274.5,3274.4,6.42616041]
[1738262656607,0.61074,3274.5,3274.4,5.81540041]
[1738262658804,0.61074,3274.5,3274.4,6.42616041]
[1738262659502,0.00457882,3274.8,3274.4,6.42616041]
[1738262659503,0.00457882,3274.8,3274.7,0.61071]
[1738262659805,0.61067,3275.0,3274.9,0.61067]
[1738262660011,0.61064,3275.2,3275.1,0.61062]
[1738262660212,0.61065,3275.1,3275.0,0.61064]
[1738262667416,0.61061,3275.3,3275.2,0.6106]
[1738262668119,0.61063,3275.1,3275.0,3.21824041]
[1738262669825,0.61063,3275.2,3275.1,0.61061]
[1738262672228,0.00457882,3275.4,3275.0,2.60760041]
[1738262672415,0.61063,3275.1,3275.0,3.21823041]
[1738262675614,0.00457882,3275.4,3274.7,2.60760041]
[1738262675926,0.61069,3274.9,3274.8,0.61067]
[1738262676618,0.61069,3274.9,3274.7,2.60760041]
[1738262676824,0.61071,3274.7,3274.6,1.5665]
[1738262677215,0.61071,3274.7,3274.4,5.81540041]
[1738262677420,0.61074,3274.5,3274.4,5.81540041]
[1738262677627,0.61074,3274.5,3274.4,6.42616041]
[1738262678225,0.61074,3274.5,3274.4,5.81540041]
[1738262678425,0.61074,3274.5,3274.4,6.42616041]
[1738262680027,0.61074,3274.5,3274.4,5.81540041]
[1738262680228,0.61074,3274.5,3274.4,6.42616041]
[1738262680823,0.61074,3274.5,3274.4,5.81540041]
[1738262681126,0.61074,3274.5,3274.4,6.42616041]
[1738262683830,1.52668,3274.9,3274.4,5.81540041]
[1738262684125,0.61074,3274.6,3274.5,1.11923]
[1738262685522,0.61072,3274.7,3274.6,0.6107]
[1738262686127,0.61072,3274.6,3274.5,1.11923]
[1738262686429,0.9841,3275.0,3274.5,0.5085]
[1738262686623,0.9841,3275.0,3274.7,3.21828041]
[1738262686624,0.6107,3274.8,3274.7,3.21828041]
[1738262687227,1.53103882,3275.4,3274.7,2.60760041]
[1738262687428,0.61065,3275.1,3275.0,3.21822041]
[1738262687828,0.61062,3275.3,3275.2,0.6106]
[1738262688628,0.61061,3275.2,3275.1,1.09802]
[1738262696134,0.61061,3275.2,3275.0,2.60760041]
[1738262696135,1.01807882,3275.4,3275.0,2.60760041]
[1738262696335,0.61067,3274.9,3274.8,4.86057]
[1738262696536,3.2078,3275.2,3274.7,2.60760041]
[1738262696729,1.67599,3274.8,3274.7,2.60760041]
[1738262698128,1.67599,3274.8,3274.7,3.21831041]
[1738262699437,4.2731,3274.8,3274.1,0.00457882]
[1738262699737,0.6108,3274.2,3274.1,0.00457882]
[1738262702252,0.6108,3274.2,3274.1,3.22299923]
[1738262704049,0.6108,3274.2,3274.1,2.61217923]
[1738262704650,0.6108,3274.2,3274.1,0.00457882]
[1738262705149,1.1352,3274.2,3274.1,0.00457882]
[1738262705353,0.61091,3273.6,3273.5,2.60760041]
[1738262705546,0.61093,3273.5,3273.4,1.47940957]
[1738262705746,0.61093,3273.5,3273.4,0.53]
[1738262706451,0.61093,3273.5,3272.9,2.60760041]
[1738262706452,0.61102,3273.0,3272.9,3.2078]
[1738262706759,0.61102,3273.0,3272.9,3.7378]
[1738262707054,0.00457882,3273.3,3272.9,3.7378]
[1738262707250,0.61101,3273.1,3272.9,6.34540041]
[1738262707451,0.61101,3273.1,3272.9,6.95643041]
[1738262707755,0.00457882,3273.3,3273.2,0.61099]
[1738262707954,0.00457882,3273.3,3273.2,3.21859041]
[1738262708748,0.61554882,3273.3,3273.2,2.60760041]
[1738262709458,0.61102,3273.0,3272.9,6.34540041]
[1738262709859,0.00457882,3273.3,3272.9,6.34540041]
[1738262710157,0.611,3273.2,3273.1,0.61099]
[1738262710359,0.61555882,3273.3,3273.1,0.61099]
[1738262710555,0.00457882,3273.3,3273.2,3.21859041]
[1738262712349,0.00457882,3273.3,3273.2,2.60760041]
[1738262712558,0.61554882,3273.3,3273.2,2.60760041]
[1738262713853,0.61554882,3273.3,3273.2,3.21859041]
[1738262715462,0.61102,3273.0,3272.9,3.7378]
[1738262715658,0.61102,3273.0,3272.9,0.53]
[1738262716060,0.00457882,3273.3,3272.9,3.13760041]
[1738262716256,0.00457882,3273.3,3273.2,3.21859041]
[1738262719671,0.00457882,3273.3,3273.2,3.21859041]
[1738262720264,0.6108,3274.2,3274.1,0.61081]
[1738262720658,0.61082,3274.1,3274.0,2.60760041]
[1738262720869,1.10043,3274.6,3274.0,2.60760041]
[1738262721076,0.4914,3274.8,3274.5,5.81540041]
[1738262721367,0.61072,3274.6,3274.5,5.81540041]
[1738262721569,0.61072,3274.6,3274.5,3.2078]
[1738262721773,0.61076,3274.4,3274.3,0.00457882]
[1738262721968,0.61076,3274.4,3274.0,3.2078]
[1738262721969,6.80860041,3274.5,3273.3,2.60760041]
[1738262722167,4.73494,3274.0,3273.3,2.60760041]
[1738262722465,4.73494,3274.0,3272.6,1.9702]
[1738262722466,0.4914,3274.3,3273.9,2.60760041]
[1738262722674,0.61082,3274.1,3273.9,3.21844041]
[1738262722969,0.4914,3274.3,3273.9,3.21844041]
[1738262723170,0.61084,3274.0,3273.9,2.60760041]
[1738262723473,0.61083,3274.1,3273.9,3.21845041]
[1738262724168,0.4914,3274.3,3273.9,2.60760041]
[1738262724374,0.4914,3274.3,3273.7,0.53487882]
[1738262724375,0.61087,3273.8,3273.7,0.53487882]
[1738262725569,0.5248,3274.0,3273.7,0.53487882]
[1738262725770,0.61086,3273.9,3273.7,1.14575882]
[1738262726074,0.5248,3274.0,3273.8,0.61086]
[1738262726271,0.61085,3273.9,3273.8,0.61086]
[1738262726472,1.13565,3274.0,3273.8,0.61086]
[1738262726672,0.61079,3274.3,3273.9,2.60760041]
[1738262726865,0.61079,3274.3,3274.1,3.81861]
[1738262727071,0.6108,3274.2,3274.1,3.2078]
[1738262727271,0.61079,3274.3,3274.1,3.8535]
[1738262727775,0.61079,3274.3,3274.1,3.2427]
[1738262727975,0.61079,3274.3,3274.2,0.6108]
[1738262730379,0.5053,3274.5,3274.1,3.2427]
[1738262730672,0.6108,3274.2,3274.1,3.2427]
[1738262733077,0.6108,3274.2,3274.1,2.7078]
[1738262737176,3.2078,3274.3,3273.7,1.03727882]
[1738262737377,0.61087,3273.8,3273.7,0.00457882]
[1738262738186,3.81867,3273.8,3273.7,0.00457882]
[1738262742086,3.81867,3273.8,3273.0,2.60760041]
[1738262742087,0.61102,3273.0,3272.9,0.5352]
[1738262742286,0.61106,3272.8,3272.7,3.2078]
[1738262748889,0.61106,3272.8,3272.7,4.31208]
[1738262749993,0.61106,3272.8,3272.7,6.91968041]
[1738262750193,0.61104,3273.0,3272.9,0.61102]
[1738262750394,0.61104,3272.9,3272.8,1.13985]
[1738262750795,0.61103,3273.0,3272.9,0.61102]
[1738262750989,0.00457882,3273.1,3272.8,0.0288]
[1738262751194,0.61559882,3273.1,3273.0,0.61102]
[1738262751796,0.00457882,3273.1,3272.8,0.0288]
[1738262751996,0.00457882,3273.1,3272.7,3.701]
[1738262752189,0.61106,3272.8,3272.7,3.701]
[1738262752498,0.61106,3272.8,3272.7,3.2078]
[1738262752996,0.61106,3272.8,3272.7,5.81540041]
[1738262753198,0.61106,3272.8,3272.7,6.34760041]
[1738262753795,0.61106,3272.8,3272.7,6.95868041]
[1738262753997,0.61106,3272.8,3272.7,7.45408041]
[1738262754495,0.61559882,3273.1,3273.0,0.61102]
[1738262754797,0.61559882,3273.1,3273.0,3.21862041]
[1738262755394,0.00457882,3273.1,3273.0,3.21862041]
[1738262755693,0.61557882,3273.1,3273.0,3.21862041]
[1738262760303,0.00457882,3273.1,3273.0,3.21862041]
[1738262760704,0.61557882,3273.1,3273.0,3.21862041]
[1738262761404,0.00457882,3273.1,3273.0,3.21862041]
[1738262761803,0.61093,3273.6,3273.5,0.61091]
[1738262762003,0.61093,3273.6,3273.5,3.21851041]
[1738262762412,0.61089,3273.8,3273.7,0.61088]
[1738262762602,3.2078,3274.2,3273.5,2.60760041]
[1738262762908,0.61089,3273.8,3273.7,0.61088]
[1738262763410,1.52708,3274.1,3273.5,2.60760041]
[1738262763706,0.61091,3273.6,3273.5,3.21850041]
[1738262764109,0.61091,3273.7,3273.6,0.6109]
[1738262764299,1.52708,3274.1,3273.5,2.60760041]
[1738262764504,3.21237882,3274.2,3273.8,2.60760041]
[1738262764700,0.00457882,3274.2,3273.9,0.5041]
[1738262765008,0.61083,3274.1,3274.0,0.61082]
[1738262765204,0.61083,3274.1,3274.0,1.12832]
[1738262766313,0.61083,3274.1,3274.0,0.5175]
[1738262768413,0.61083,3274.1,3274.0,0.51626274]
[1738262770011,0.61091,3273.7,3273.6,0.61089]
[1738262770408,0.5032,3274.0,3273.5,3.09900041]
[1738262770611,0.61087,3273.9,3273.8,0.61086]
[1738262771509,0.4851,3274.1,3273.6,0.4957]
[1738262771717,0.61093,3273.5,3273.4,6.1448]
[1738262772413,0.61093,3273.5,3273.4,6.75575]
[1738262772614,0.61093,3273.5,3273.4,6.1448]
[1738262773116,0.61093,3273.5,3273.4,6.75575]
[1738262773621,0.61091,3273.7,3273.6,0.6109]
[1738262773817,0.61091,3273.7,3273.6,3.21850041]
[1738262774314,0.61091,3273.7,3273.6,3.74160041]
[1738262776018,2.01217,3274.1,3274.0,0.61082]
[1738262776019,0.61082,3274.1,3274.0,0.61082]
[1738262776319,3.21237882,3274.2,3274.1,0.61082]
[1738262776623,0.00457882,3274.2,3274.1,0.61082]
[1738262776816,0.00457882,3274.2,3274.1,1.13712]
[1738262777916,3.6945,3275.0,3274.1,4.07412]
[1738262778121,0.61067,3274.9,3274.8,3.21828041]
[1738262778721,3.2078,3275.0,3274.8,2.60760041]
[1738262779020,0.61066,3275.0,3274.9,0.61067]
[1738262779217,4.73427,3275.4,3274.8,2.60760041]
[1738262779218,0.00457882,3275.2,3274.8,2.60760041]
[1738262779521,0.61064,3275.1,3275.0,0.61063]
[1738262780520,0.00457882,3275.2,3274.9,1.0591]
[1738262780521,0.61065,3275.0,3274.9,1.0591]
[1738262780825,1.53114882,3275.2,3274.6,0.61528882]
[1738262781126,0.61071,3274.7,3274.6,0.61528882]
[1738262781922,0.61071,3274.7,3274.6,0.00457882]
[1738262782127,0.61076,3274.4,3274.0,4.85452]
[1738262782627,1.52672,3274.8,3274.1,0.6108]
[1738262782828,0.6108,3274.2,3274.1,0.6108]
[1738262783027,0.6108,3274.2,3274.1,3.21840041]
[1738262783931,0.6108,3274.2,3274.1,2.60760041]
[1738262784222,1.52689,3274.5,3274.0,3.2078]
[1738262784424,2.60760041,3274.7,3273.8,2.61217923]
[1738262784425,0.61085,3273.9,3273.8,2.61217923]
[1738262784626,0.61085,3273.9,3273.8,0.00457882]
[1738262790823,0.61085,3273.9,3273.8,0.61544882]
[1738262791627,0.61084,3274.0,3273.9,0.61084]
[1738262791823,0.61084,3274.0,3273.9,1.10744]
[1738262792127,0.61084,3274.0,3273.9,0.4966]
[1738262792730,0.61084,3274.0,3273.9,1.10744]
[1738262795133,0.61083,3274.1,3274.0,0.61081]
[1738262797824,0.61081,3274.2,3274.1,0.6108]
[1738262799727,0.4898,3274.6,3274.1,2.60760041]
[1738262799923,0.61076,3274.5,3274.4,0.61075]
[1738262801028,0.61078,3274.4,3274.3,0.61077]
[1738262801229,0.61084,3274.1,3274.0,0.61083]
[1738262801831,0.61084,3274.0,3273.9,3.7044]
[1738262802034,0.61084,3274.0,3273.9,4.31525]
[1738262802531,0.61084,3274.0,3273.9,1.10745]
[1738262804126,3.2078,3274.3,3274.2,0.6108]
[1738262804332,3.2078,3274.3,3274.2,3.21840041]
[1738262806139,0.5108,3274.9,3274.4,1.52689]
[1738262806439,0.61071,3274.8,3274.7,0.6107]
[1738262807135,0.5108,3274.9,3274.5,0.511]
[1738262807331,1.52682,3274.6,3273.5,2.60760041]
[1738262807535,1.52691,3274.4,3273.8,2.61217923]
[1738262807832,1.0228,3274.5,3273.8,5.81997923]
[1738262808040,0.5172,3274.3,3274.0,0.61083]
[1738262808238,0.61081,3274.2,3274.1,0.61081]
[1738262808439,0.61083,3274.1,3274.0,0.61082]
[1738262808640,0.61085,3274.0,3273.9,0.61083]
[1738262809231,0.61085,3273.9,3273.8,3.21237882]
[1738262809541,0.61085,3273.9,3273.8,0.00457882]
[1738262812138,0.61085,3273.9,3273.8,0.61544882]
[1738262812640,0.61085,3273.9,3273.8,0.00457882]
[1738262812836,0.61085,3273.9,3273.8,0.61544882]
[1738262813646,0.61083,3274.1,3274.0,0.61082]
[1738262813847,1.12799,3274.3,3274.2,0.6108]
[1738262814143,1.12799,3274.3,3273.8,7.34713923]
[1738262814144,0.6108,3274.2,3274.1,3.21841041]
[1738262814536,0.6108,3274.2,3274.1,0.61081]
[1738262814846,0.5172,3274.3,3273.8,5.81997923]
[1738262815146,0.61084,3274.1,3274.0,0.61083]
[1738262817742,0.61081,3274.2,3274.1,0.6108]
[1738262817938,3.2078,3274.6,3274.1,2.60760041]
[1738262818135,0.61076,3274.5,3274.4,0.61075]
[1738262818937,3.2078,3274.6,3274.2,1.0327]
[1738262819240,3.2078,3274.6,3274.5,0.61074]
[1738262819241,3.81855,3274.6,3274.5,0.61074]
[1738262820344,0.529,3274.8,3274.4,2.60760041]
[1738262820541,0.61072,3274.7,3274.6,0.61071]
[1738262821137,0.529,3274.8,3274.4,2.60760041]
[1738262821344,0.61074,3274.6,3274.5,0.61073]
[1738262822347,0.61074,3274.6,3274.5,0.61074]
[1738262823751,0.61078,3274.3,3274.2,4.85129]
[1738262823953,0.61078,3274.3,3274.2,1.64349]
[1738262832351,0.61078,3274.3,3274.2,1.0327]
[1738262832553,0.61078,3274.3,3273.9,0.5325]
[1738262832554,3.2078,3274.3,3273.9,0.5325]
[1738262832852,0.61084,3274.0,3273.9,0.5325]
[1738262833864,0.61085,3273.9,3273.8,0.00457882]
[1738262834165,0.61093,3273.5,3273.4,3.2078]
[1738262834854,0.61093,3273.5,3273.4,3.81875]
[1738262835066,0.61093,3273.5,3273.4,3.2078]
[1738262835656,0.61093,3273.5,3273.4,3.81875]
[1738262835857,0.61093,3273.6,3273.5,0.61093]
[1738262836063,0.61091,3273.6,3273.5,2.60760041]
[1738262836260,0.61093,3273.5,3273.4,3.2078]
[1738262836457,0.5085,3273.5,3273.1,1.53487882]
[1738262836655,0.61099,3273.2,3273.1,0.00457882]
[1738262836856,0.61108,3272.7,3272.6,3.2078]
[1738262837562,0.61107,3272.8,3272.7,0.61108]
[1738262837865,0.61107,3272.8,3272.7,0.4859]
[1738262839563,0.61107,3272.8,3272.7,1.09698]
[1738262841468,0.61102,3273.0,3272.9,0.61102]
[1738262841661,0.61558882,3273.1,3273.0,0.61102]
[1738262841967,0.61558882,3273.1,3272.9,2.60760041]
[1738262841968,0.61102,3273.0,3272.9,3.21863041]
[1738262842357,0.61102,3273.0,3272.9,2.60760041]
[1738262843258,0.61102,3273.0,3272.9,3.21864041]
[1738262843961,0.61102,3273.0,3272.9,2.60760041]
[1738262844360,0.00457882,3273.1,3272.7,0.4859]
[1738262844361,0.61106,3272.8,3272.7,0.4859]
[1738262844568,0.61108,3272.7,3272.6,5.81540041]
[1738262846074,0.61108,3272.7,3272.6,6.42650041]
[1738262846862,0.61108,3272.7,3272.6,5.81540041]
[1738262847370,0.61108,3272.7,3272.6,6.42650041]
[1738262849461,1.0298,3272.9,3272.6,5.81540041]
[1738262849656,0.61108,3272.7,3272.6,5.81540041]
[1738262849865,0.61108,3272.7,3272.6,6.42649041]
[1738262850871,0.00457882,3273.1,3272.6,5.81540041]
[1738262851170,1.13127,3273.9,3273.8,0.61087]
[1738262851359,3.0568,3274.5,3273.8,2.60760041]
[1738262851567,3.0568,3274.5,3273.9,0.61084]
[1738262851872,0.61085,3274.0,3273.9,0.61086]
[1738262852067,0.61083,3274.1,3274.0,0.61083]
[1738262852463,0.00457882,3274.3,3273.8,2.60760041]
[1738262852674,0.00457882,3274.3,3274.1,2.60760041]
[1738262852675,0.61082,3274.2,3274.1,2.60760041]
[1738262852870,0.00457882,3274.3,3274.1,2.60760041]
[1738262853070,0.00457882,3274.3,3274.2,0.6108]
[1738262853262,0.5336,3275.1,3274.2,0.4993]
[1738262853468,0.61066,3275.0,3274.6,3.2078]
[1738262853776,0.61068,3274.9,3274.8,2.60760041]
[1738262854165,0.61068,3274.9,3274.8,3.21829041]
[1738262854858,0.00457882,3275.2,3274.8,2.60760041]
[1738262855061,0.61064,3275.1,3275.0,0.61065]
[1738262855475,0.00457882,3275.2,3274.8,2.60760041]
[1738262855674,0.61065,3275.0,3274.9,0.61065]
[1738262855871,0.00457882,3275.2,3274.8,3.21828041]
[1738262855872,0.61067,3274.9,3274.8,3.21828041]
[1738262856174,0.61066,3275.0,3274.9,0.61066]
[1738262856770,0.00457882,3275.2,3274.8,2.60760041]
[1738262856977,0.00457882,3275.2,3275.1,3.21823041]
[1738262857179,0.00457882,3275.2,3275.1,6.42603041]
[1738262863374,0.00457882,3275.2,3275.1,5.81540041]
[1738262863676,0.61518882,3275.2,3275.1,5.81540041]
[1738262864879,0.61518882,3275.2,3275.1,3.2078]
[1738262865177,0.61067,3274.9,3274.8,2.60760041]
[1738262866973,0.00457882,3275.2,3274.8,3.21829041]
[1738262867481,0.61066,3275.0,3274.8,2.60760041]
[1738262867776,0.61066,3275.0,3274.9,0.61067]
[1738262868080,0.61066,3275.0,3274.8,2.60760041]
[1738262868279,0.00457882,3275.2,3274.8,3.21828041]
[1738262868477,0.61067,3274.9,3274.8,3.21828041]
[1738262869172,0.61067,3274.9,3274.8,2.60760041]
[1738262869786,0.61067,3274.9,3274.8,3.21829041]
[1738262870281,0.61067,3274.9,3274.8,2.60760041]
[1738262870584,0.61067,3274.9,3274.8,3.21829041]
[1738262871277,0.00457882,3275.2,3274.9,0.61067]
[1738262871583,0.61520882,3275.2,3275.1,3.21823041]
[1738262871879,0.61520882,3275.2,3275.1,2.72733041]
[1738262873085,0.61520882,3275.2,3275.1,2.11670041]
[1738262873581,0.61067,3274.9,3274.8,2.60760041]
[1738262874778,0.61067,3274.9,3274.8,3.21829041]
[1738262875081,0.61067,3274.9,3274.8,2.60760041]
[1738262876083,0.61067,3274.9,3274.8,3.21829041]
[1738262876279,0.61067,3274.9,3274.8,2.60760041]
[1738262877186,0.61067,3274.9,3274.8,3.21829041]
[1738262877577,0.61067,3274.9,3274.8,2.60760041]
[1738262877978,0.61072,3274.6,3274.5,2.61217923]
[1738262878182,0.61072,3274.6,3274.5,0.00457882]
[1738262880385,3.2078,3274.7,3273.9,5.81540041]
[1738262880585,0.61084,3274.0,3273.9,6.42625041]
[1738262881386,0.61084,3274.0,3273.9,3.2078]
[1738262882786,0.61084,3274.0,3273.9,3.81865]
[1738262882982,0.61084,3274.0,3273.9,3.2078]
[1738262883283,0.61084,3274.0,3273.9,3.81865]
[1738262883487,0.61084,3274.0,3273.9,3.2078]
[1738262883991,0.61085,3273.9,3273.8,0.61087]
[1738262890084,0.61089,3273.7,3273.6,2.61217923]
[1738262890280,0.61089,3273.7,3273.6,0.00457882]
[1738262890786,0.61099,3273.2,3273.1,1.65629]
[1738262890986,4.73501,3273.8,3273.1,1.0453]
[1738262891290,0.61096,3273.4,3273.3,0.61095]
[1738262891887,0.61094,3273.5,3273.4,0.61094]
[1738262892085,0.00457882,3273.7,3273.4,3.2078]
[1738262892286,0.00457882,3273.7,3273.6,3.21851041]
[1738262892490,3.2078,3274.2,3273.6,2.60760041]
[1738262892682,3.2078,3274.2,3273.8,0.61086]
[1738262892683,0.61086,3273.9,3273.8,0.61086]
[1738262892878,0.61086,3273.9,3273.8,1.11536]
[1738262893488,0.61086,3273.9,3273.8,0.5045]
[1738262893693,0.61086,3273.9,3273.8,1.11537]
[1738262896391,0.61086,3273.9,3273.8,0.5045]
[1738262896794,0.61095,3273.4,3273.3,2.60760041]
[1738262900395,0.61095,3273.4,3273.3,2.10760041]
[1738262903403,0.5052,3273.7,3273.3,2.10760041]
[1738262903599,0.61095,3273.5,3273.4,0.61092]
[1738262904101,0.61095,3273.5,3273.4,3.81872]
[1738262904498,0.5158,3273.8,3273.4,3.2078]
[1738262904700,1.12667,3273.8,3273.7,2.60760041]
[1738262905396,0.61091,3273.6,3273.5,1.10752]
[1738262906994,0.61091,3273.6,3273.5,0.4966]
[1738262907899,0.61091,3273.6,3273.5,1.10753]
[1738262909505,3.2078,3273.9,3273.5,0.4966]
[1738262909802,0.00457882,3274.2,3273.5,0.4966]
[1738262909803,0.61087,3273.8,3273.7,3.21847041]
[1738262910210,0.61087,3273.8,3273.7,2.60760041]
[1738262910407,0.53687882,3274.2,3273.5,0.4966]
[1738262910612,0.53687882,3274.2,3273.4,5.81540041]
[1738262910613,0.61093,3273.5,3273.4,3.21853041]
[1738262915513,3.2078,3273.9,3273.4,2.60760041]
[1738262915514,0.61092,3273.6,3273.4,2.60760041]
[1738262915718,0.61087,3273.9,3273.8,0.61085]
[1738262915907,0.61087,3273.9,3273.8,3.21845041]
[1738262916107,0.61087,3273.9,3273.8,2.60760041]
[1738262916308,0.61087,3273.9,3273.8,3.21845041]
[1738262916506,0.61087,3273.9,3273.8,2.60760041]
[1738262916712,0.61089,3273.7,3273.6,0.519]
[1738262918509,0.61091,3273.6,3273.5,3.21852041]
[1738262919808,3.56629,3273.7,3273.0,0.00457882]
[1738262920014,0.611,3273.1,3273.0,0.00457882]
[1738262921010,1.0092,3273.5,3273.0,3.21237882]
[1738262921312,0.61093,3273.5,3273.4,3.2078]
[1738262921713,0.61093,3273.5,3273.4,0.61095]
[1738262923015,0.611,3273.2,3273.1,0.611]
[1738262923507,0.611,3273.1,3273.0,6.43098923]
[1738262924619,0.5118,3273.7,3273.0,5.81997923]
[1738262924919,0.61099,3273.2,3273.1,0.61098]
[1738262925315,0.5118,3273.7,3273.4,0.61093]
[1738262925515,0.61094,3273.5,3273.4,3.21853041]
[1738262926219,0.5118,3273.7,3273.4,2.60760041]
[1738262926422,0.61092,3273.6,3273.5,0.61091]
[1738262926822,0.61092,3273.6,3273.4,2.60760041]
[1738262927023,0.61092,3273.6,3273.5,0.61091]
[1738262929325,0.504,3273.8,3273.4,5.81540041]
[1738262929525,1.0225,3274.1,3273.7,2.60760041]
[1738262929723,0.00457882,3274.2,3274.0,2.60760041]
[1738262930030,0.00457882,3274.2,3274.1,0.61082]
[1738262932717,0.61082,3274.1,3274.0,2.60760041]
[1738262934127,0.61082,3274.1,3274.0,3.21844041]
[1738262934424,0.61082,3274.1,3274.0,2.60760041]
[1738262934621,0.61082,3274.1,3274.0,3.21844041]
[1738262934818,0.61082,3274.1,3274.0,2.60760041]
[1738262937328,0.61082,3274.1,3274.0,3.21844041]
[1738262937726,0.61082,3274.1,3274.0,2.60760041]
[1738262938427,0.53347882,3274.2,3274.0,2.60760041]
[1738262938623,0.61538882,3274.2,3274.1,0.61082]
[1738262938925,0.00457882,3274.2,3274.1,1.13492]
[1738262939125,0.00457882,3274.2,3274.1,1.62682]
[1738262943432,0.61067,3275.0,3274.9,3.21826041]
[1738262943630,0.61067,3275.0,3274.9,2.60760041]
[1738262945230,0.4892,3275.1,3274.8,3.2078]
[1738262945428,0.61071,3274.7,3274.6,2.61217923]
[1738262946133,0.61071,3274.7,3274.4,0.61075]
[1738262946134,0.61076,3274.4,3274.3,2.60760041]
[1738262946331,0.61082,3274.1,3274.0,5.81540041]
[1738262946537,1.52709,3274.1,3273.4,5.81540041]
[1738262946731,0.61093,3273.5,3273.4,6.42633041]
[1738262946928,3.81873,3273.5,3273.4,2.60760041]
[1738262947127,0.61099,3273.2,3273.1,2.60760041]
[1738262947434,0.61099,3273.2,3273.1,2.61217923]
[1738262948229,0.61099,3273.2,3273.1,3.22317923]
[1738262949223,0.61099,3273.2,3273.1,0.00457882]
[1738262950031,0.61099,3273.2,3273.1,2.61217923]
[1738262953726,0.61099,3273.2,3273.1,3.22317923]
[1738262953927,0.61099,3273.2,3273.1,2.61217923]
[1738262956132,0.61099,3273.2,3273.1,0.00457882]
[1738262962239,1.4793,3273.4,3272.8,2.11217923]
[1738262962447,3.2078,3273.0,3272.6,3.60480041]
[1738262962739,0.61108,3272.7,3272.6,4.21589041]
[1738262964142,0.61108,3272.7,3272.6,3.60480041]
[1738262966639,0.61108,3272.7,3272.6,2.60760041]
[1738262967540,0.61108,3272.7,3272.3,3.12547923]
[1738262967736,0.61125,3271.8,3271.7,2.60760041]
[1738262967935,6.79740041,3272.2,3271.5,1.0561]
[1738262968131,0.61128,3271.6,3271.5,1.0561]
[1738262968939,0.61128,3271.6,3271.5,1.1674]
[1738262969341,3.2078,3271.8,3271.6,0.61127]
[1738262969342,0.61128,3271.7,3271.6,0.61127]
[1738262969537,0.61128,3271.7,3271.6,3.21887041]
[1738262969944,0.61128,3271.7,3271.6,2.60760041]
[1738262970150,3.2078,3271.8,3271.3,2.60760041]
[1738262970347,0.61132,3271.4,3271.3,2.60760041]
[1738262973643,0.61132,3271.4,3271.3,3.21894041]
[1738262974845,3.2078,3271.8,3271.3,2.60760041]
[1738262975043,0.49897882,3271.9,3271.6,3.21888041]
[1738262975044,0.00457882,3271.9,3271.6,3.21888041]
[1738262975353,0.61581882,3271.9,3271.8,0.61125]
[1738262975535,0.61581882,3271.9,3271.8,0.5005]
[1738262977246,0.61581882,3271.9,3271.8,1.11175]
[1738262977444,0.61581882,3271.9,3271.8,0.5005]
[1738262979838,0.61581882,3271.9,3271.8,1.11175]
[1738262980553,0.61125,3271.8,3271.7,1.0001]
[1738262982255,0.61125,3271.8,3271.7,1.61136]
[1738262983049,0.61580882,3271.9,3271.8,0.61125]
[1738262985749,0.61125,3271.8,3271.7,1.61136]
[1738262986148,0.61125,3271.8,3271.7,1.0001]
[1738262986653,0.61125,3271.8,3271.7,1.61136]
[1738262991157,0.61125,3271.8,3271.7,1.0001]
[1738262991660,1.09785,3271.8,3271.7,1.0001]
[1738262992149,1.09785,3271.8,3271.7,0.4872]
[1738262992960,0.4866,3271.8,3271.6,3.21888041]
[1738262993149,0.61127,3271.7,3271.6,3.21888041]
[1738262993748,3.21237882,3271.9,3271.5,0.5153]
[1738262994050,0.61134,3271.3,3271.2,0.00305258]
[1738262997957,0.61143,3270.8,3270.7,3.2078]
[1738262999156,0.61143,3270.8,3270.7,3.81925]
[1738262999861,0.61142,3271.0,3270.9,0.6114]
[1738263000164,0.61142,3271.0,3270.9,3.21900041]
[1738263000348,0.61139,3271.2,3271.1,0.61136]
[1738263000657,0.61139,3271.2,3271.1,2.71896041]
[1738263000956,0.61139,3271.2,3271.1,2.60760041]
[1738263001354,0.61141,3270.9,3270.8,3.72012041]
[1738263002062,0.5107,3271.3,3270.8,3.10870041]
[1738263002254,0.61581882,3271.9,3271.8,0.61125]
[1738263002452,0.00457882,3271.9,3271.8,6.42665041]
[1738263007567,0.61580882,3271.9,3271.8,3.2078]
[1738263007757,0.00457882,3271.9,3271.2,2.60760041]
[1738263007956,3.2078,3271.7,3270.9,5.81540041]
[1738263008171,0.61134,3271.3,3271.2,3.21895041]
[1738263008468,0.61134,3271.3,3271.2,3.21896041]
[1738263008769,3.2078,3271.7,3271.2,2.60760041]
[1738263008969,0.6113,3271.6,3271.5,3.21889041]
[1738263009157,0.6113,3271.6,3271.5,2.60760041]
[1738263009566,0.6113,3271.6,3271.5,3.21890041]
[1738263009769,0.6113,3271.6,3271.5,2.60760041]
[1738263012374,0.6113,3271.6,3271.5,3.21890041]
[1738263013070,0.5186,3271.8,3271.5,2.60760041]
[1738263013365,1.12986,3271.8,3271.7,0.61127]
[1738263013771,0.5186,3271.8,3271.5,2.60760041]
[1738263014271,0.61127,3271.7,3271.6,0.61127]
[1738263014974,1.12985,3271.8,3271.7,0.61127]
[1738263015381,0.5186,3271.8,3271.7,0.61127]
[1738263015582,1.12985,3271.8,3271.7,0.61127]
[1738263017671,0.5186,3271.8,3271.6,0.5363]
[1738263017981,0.61127,3271.7,3271.6,1.14757]